Cogmind - Beta 16 @@@ ROGUE MODE // 2025.12.07 @ 17:36:52 Player: Mozco Result: Destroyed by G-47 Trooper with Particle Gun Performance ------------- Evolutions (0) 0 Regions Visited (2) 400 Robots Destroyed (33) 165 Value Destroyed (633) 633 Prototype IDs (0) 0 Alien Tech Used (0) 0 Bonus (0) 0 TOTAL SCORE: 1198 Bonus ------- None Cogmind --------- Core Integrity 0/250 Matter 278/300 Energy 237/250 System Corruption 1% Temperature Warm (108) Movement Treading (160) Location -10/Mines Parts ------- > --- POWER (1) -------- Ion Engine > --- PROPULSION (2) --- Light Treads Light Treads > --- UTILITY (2) ------ Medium Storage Unit Light Armor Plating > --- WEAPON (2) ------- Beam Cannon Assault Rifle > --- INVENTORY (10) --- Light Ion Engine Light Treads Light Treads Heat Sink Small Storage Unit Beam Cannon Light Assault Rifle Grenade Launcher Peak State ------------ > --- POWER ------------ Ion Engine > --- PROPULSION ------- Light Treads Light Treads > --- UTILITY ---------- Heat Sink Small Storage Unit > --- WEAPON ----------- EM Pulse Gun Assault Rifle > --- INVENTORY -------- Light Ion Engine Light Assault Rifle Grenade Launcher [Rating: 7] Favorites ----------- Power Ion Engine Engine Ion Engine Propulsion Light Treads Treads Light Treads Utility Heat Sink Device Heat Sink Storage Medium Storage Unit Protection Light Armor Plating Weapon Assault Rifle Energy Gun EM Pulse Gun Energy Cannon Beam Cannon Ballistic Gun Assault Rifle Launcher Grenade Launcher Build | -11 -10 -10 ------- Run | Yrd Mat Min Slots Evolved . | . . . Power . | . . . Propulsion . | . . . Utility . | . . . Weapon . | . . . Parts Attached 12 | 7 4 1 Power 1 | 1 . . Engine 1 | 1 . . Core . | . . . Reactor . | . . . Propulsion 2 | 2 . . Treads 2 | 2 . . Leg . | . . . Wheel . | . . . Hover . | . . . Flight . | . . . Utility 4 | 1 2 1 Device 1 | . 1 . Storage 2 | 1 1 . Processor . | . . . Hackware . | . . . Protection 1 | . . 1 Artifact . | . . . Weapon 5 | 3 2 . Energy Gun 1 | 1 . . Energy Cannon 1 | . 1 . Ballistic Gun 2 | 2 . . Ballistic Cannon . | . . . Launcher 1 | . 1 . Special Weapon . | . . . Impact Weapon . | . . . Slashing Weapon . | . . . Piercing Weapon . | . . . Special Melee Weapon . | . . . Unidentified Prototypes . | . . . Parts Lost 1 | . 1 . Power . | . . . Propulsion . | . . . Utility . | . . . Weapon 1 | . 1 . Highest Loss Streak 1 | . 1 . To Critical Strikes . | . . . Average Backups 5 | 1 5 8 Power . | . 1 1 Propulsion . | . . 2 Utility 1 | . 1 2 Weapon 2 | . 2 3 Tool/Special . | . . . Unused Backups 4 | . . 4 Power 1 | . . 1 Propulsion 2 | . . 2 Utility . | . . . Weapon 1 | . . 1 Tool/Special . | . . . Average Slot Usage (%) 96 | . 93 100 Engine 14 | . 14 14 Treads 27 | . 27 28 Device 10 | . 9 13 Storage 14 | . 14 14 Energy Gun 5 | . 8 . Energy Cannon 4 | . 3 6 Ballistic Gun 14 | . 14 14 Launcher 3 | . 1 7 Peak Build Rating 7 | 6 7 7 Average Rating 6 | 4 6 7 On Entrance 4 | . 6 7 Avg Prop Armor Cover (%) . | . . . Naked Turns . | . . . Heaviest Build 23 | 14 21 23 Greatest Support 40 | 40 40 40 Greatest Overweight (x) . | . . . Average Overweight (x) . | . . . Largest Inventory Capacity 10 | 8 10 10 Average Capacity 9 | 7 9 10 Most Carried 8 | 2 8 8 Average Carried 6 | 1 5 8 Final Capacity 10 | 8 10 10 Final Carried 8 | 2 8 8 Class Distribution -------------------- 100% | Mutant Dominant Class ---------------- Mutant | -10/Materials Mutant | -10/Mines Resources | -11 -10 -10 ----------- Run | Yrd Mat Min Matter Collected 640 | 288 270 82 Remotely . | . . . Salvage Created 923 | 100 697 126 Parts 70 | 1 46 23 Haulers Intercepted 2 | . 2 . Recyclers Shooed . | . . . Parts Field Recycled . | . . . Retrieved Matter . | . . . Parts Self-Destructed . | . . . Prevented . | . . . Parts Restored . | . . . Kills | -11 -10 -10 ------- Run | Yrd Mat Min Combat Hostiles Destroyed 21 | . 15 6 Guns 8 | . 7 1 Cannons 3 | . 2 1 AOE 10 | . 6 4 Classes Destroyed 8 | 1 6 1 Worker 1 | . . 1 Builder 3 | . 1 2 Hauler 2 | . 2 . Recycler 2 | 1 1 . Operator 2 | . 2 . Watcher 2 | . 2 . Swarmer 9 | . 6 3 Grunt 12 | . 9 3 Best Kill Streak 7 | 1 7 4 Combat Bots Only 4 | . 4 3 Max Kills in Single Turn 4 | 1 4 2 Gunslinging . | . . . Exploded 3 | . 3 1 Melee . | . . . Uniques/NPCs Destroyed . | . . . Combat | -11 -10 -10 -------- Run | Yrd Mat Min Hostile Shots Fired 73 | . 57 16 Missed 14 | . 13 1 Hits 59 | . 44 15 Projectile 59 | . 44 15 Critical Strikes 1 | . . 1 Damage Taken 747 | . 520 227 Core 258 | . 170 88 Absorbed by Shields . | . . . Regen/Repaired (Parts) 147 | . 147 . Core Remaining (%) 100 | 100 . . Volleys Fired 71 | 6 54 11 Largest 2 | 2 2 2 Hottest 80 | 60 80 80 Shots Fired 132 | 12 103 17 Gun 106 | 12 88 6 Cannon 17 | . 11 6 Launcher 9 | . 4 5 Special . | . . . Kinetic 62 | 6 50 6 Thermal 17 | . 11 6 Explosive 9 | . 4 5 Electromagnetic 44 | 6 38 . Robot Hit Streak 11 | 5 9 11 Robot Miss Streak 3 | 2 3 2 Penetration Max . | . . . Secondary Targets 1 | . 1 . Max Gunslinging Chain 1 | . 1 . Shots Hit Robots 83 | 9 66 8 Core Hits 50 | 2 37 11 Critical Kills . | . . . Critical Parts Destroyed . | . . . Critical Strikes . | . . . Melee Attacks . | . . . Impact . | . . . Slashing . | . . . Piercing . | . . . Sneak Attacks . | . . . Combat Hostiles . | . . . Follow-up Attacks . | . . . Damage Inflicted 2007 | 108 1471 428 Guns 950 | 108 787 55 Cannons 212 | . 159 53 Explosions 817 | . 509 308 Melee . | . . . Ramming 28 | . 16 12 Kinetic 544 | 53 436 55 Thermal 260 | . 207 53 Explosive 769 | . 461 308 Electromagnetic 406 | 55 351 . Impact . | . . . Slashing . | . . . Piercing . | . . . Highest Corruption 1 | . 1 1 Average Corruption 1 | . 1 1 Corruption Purged . | . . . Corruption Blocked . | . . . Effects 10 | . 2 8 Message Errors 2 | . . 2 Matter Fused 1 | . . 1 Heat Flow Errors 3 | . 1 2 Energy Discharges 1 | . 1 . Data Loss (minor) 2 | . . 2 Data Loss (major) 1 | . . 1 Overload Shots . | . . . Overflow Damage 12 | . 12 . Projectiles 5 | . 5 . Explosions 7 | . 7 . Melee . | . . . Knockbacks . | . . . Impact . | . . . Kinetic . | . . . Secondary . | . . . Self-Inflicted Damage 46 | . 8 38 Shots 2 | . 1 1 Rammed 5 | . 4 1 Targets Rammed 6 | . 4 2 Kicked . | . . . Crushed 1 | . . 1 Highest Temperature 200 | . 72 200 Average Temperature 41 | . 26 69 Received Heat Transfer 327 | . 234 93 Siege Activations . | . . . Martial Activations . | . . . Shielding Activations . | . . . Robots Disrupted . | . . . Combat Hostiles . | . . . Robots Corrupted . | . . . Combat Hostiles . | . . . Parts Fried 2 | 1 1 . Impact Corruptions . | . . . Robots Melted . | . . . Combat Hostiles . | . . . Parts Melted . | . . . Heat Transferred 544 | . 433 111 Parts Sabotaged . | . . . Parts Stolen . | . . . Parts Stripped . | . . . Power Chain Reactions 1 | . 1 . Alert | -11 -10 -10 ------- Run | Yrd Mat Min Maximum Alert Level 1 | . 1 . Low Security (%) 89 | 100 81 100 Level 1 10 | . 18 . Level 2 . | . . . Level 3 . | . . . Level 4 . | . . . Level 5 . | . . . High Security . | . . . Max Security . | . . . Peak Influence 224 | 5 224 86 Initial 79 | . . 79 Average 57 | . 83 28 Influence Increases 701 | 5 522 174 Destroy 0b10 Robot/C 420 | . 300 120 Destroy 0b10 Robot/NC 60 | 5 40 15 Destroy Leader 98 | . 78 20 Successful Hack 12 | . 12 . Select Force Hacks 30 | . 30 . Destroy Structure 51 | . 32 19 Lose Combat Pursuer 30 | . 30 . Influence Decreases 646 | 5 316 325 Entered New Map 127 | . . 127 Time Decay 509 | 5 306 198 Lost Part 10 | . 10 . Squads Dispatched 6 | . 6 . Investigation 5 | . 5 . Extermination . | . . . Reinforcement 1 | . 1 . Assault . | . . . Garrison . | . . . Intercept . | . . . Searches Triggered . | . . . Construction Impeded . | . . . Haulers Reinforced . | . . . Active Scanning Responses . | . . . Cargo Convoy Interrupts . | . . . Stealth | -11 -10 -10 --------- Run | Yrd Mat Min Distress Signals 1 | . 1 . Communications Jammed . | . . . Distress Signals . | . . . Times Spotted 30 | . 23 7 Peak Tracking Total 5 | . 5 3 Tactical Retreats 2 | . 2 . Traps | -11 -10 -10 ------- Run | Yrd Mat Min Traps Triggered 3 | . 3 . Indirectly . | . . . Trap Hack Attempts . | . . . Triggered . | . . . Disarmed . | . . . Reprogrammed . | . . . Reused . | . . . Traps Extracted . | . . . Installed . | . . . Triggered . | . . . Machines | -11 -10 -10 ---------- Run | Yrd Mat Min Machines Disabled . | . . . Max in Single Turn . | . . . Machines Repaired . | . . . Machines Dismantled . | . . . Machines Sabotaged . | . . . Overloaded Fab Kills . | . . . Hacking | -11 -10 -10 --------- Run | Yrd Mat Min Machines Accessed 5 | . 5 . Terminals 3 | . 3 . Fabricators . | . . . Repair Stations 1 | . 1 . Recycling Units 1 | . 1 . Scanalyzers . | . . . Garrison Access . | . . . Total Hacks 20 | . 20 . Successful 12 | . 12 . Failed 8 | . 8 . Catastrophic 1 | . 1 . Database Lockouts . | . . . Manual 15 | . 15 . Terminals 14 | . 14 . Fabricators . | . . . Repair Stations 5 | . 5 . Recycling Units 1 | . 1 . Scanalyzers . | . . . Garrison Access . | . . . Terminal Hacks 5 | . 5 . Part Schematic 2 | . 2 . Robot Analysis 3 | . 3 . Fabricator Hacks . | . . . Repair Station Hacks 4 | . 4 . Scan Component 2 | . 2 . Repair 2 | . 2 . Recycling Unit Hacks . | . . . Scanalyzer . | . . . Garrison Access Hacks . | . . . Unauthorized Hacks 3 | . 3 . Terminals 2 | . 2 . Botnet 2 | . 2 . Fabricators . | . . . Repair Stations . | . . . Recycling Units 1 | . 1 . Tunnel 1 | . 1 . Scanalyzers . | . . . Garrison Access . | . . . Data Cores Recovered . | . . . Used . | . . . Hacking Detections 4 | . 4 . Full Trace Events 2 | . 2 . Feedback Events 1 | . 1 . Corruption 1 | . 1 . Feedback Blocked . | . . . Robot Schematics Acquired . | . . . Robots Built . | . . . Authchips . | . . . Time . | . . . Total Robot Build Rating . | . . . Part Schematics Acquired 2 | . 2 . Parts Built . | . . . Authchips . | . . . Time . | . . . Total Part Build Rating . | . . . Part Studies Acquired . | . . . Parts Repaired 2 | . 2 . Time 52 | . 52 . Parts Recycled . | . . . Recycled Matter . | . . . Retrieved Matter . | . . . Retrieved Components . | . . . Parts Scanalyzed . | . . . Part Schematics Acquired . | . . . Parts Damaged . | . . . Bothacking | -11 -10 -10 ------------ Run | Yrd Mat Min Used RIF Installer . | . . . Robots Hacked . | . . . Non-combat . | . . . Combat . | . . . Robot Hacks Applied . | . . . Relay Couplers Released . | . . . Fabnet Peak Effective % . | . . . Robots Rewired . | . . . Allies Hacked . | . . . Hacks Repelled . | . . . Allies | -11 -10 -10 -------- Run | Yrd Mat Min Total Allies . | . . . Largest Group . | . . . Highest-Rated Group . | . . . Highest-Rated Ally . | . . . Total Orders . | . . . Ally Attacks . | . . . Total Damage . | . . . Kills . | . . . Allies Corrupted . | . . . Allies Melted . | . . . Intel | -11 -10 -10 ------- Run | Yrd Mat Min Active Infowar (turns) . | . . . Robot Analysis Total 3 | . 3 . Derelict Logs Recovered 2 | . . 2 Drone Launches . | . . . Drone Recoveries . | . . . Exploration | -11 -10 -10 ------------- Run | Yrd Mat Min Turns Passed 1833 | 144 1024 665 Spaces Moved 941 | 73 475 393 Core 1 | 1 . . Treads 940 | 72 475 393 Legs . | . . . Wheels . | . . . Hover . | . . . Flight . | . . . Fastest Speed 50 | 50 160 160 Average Speed 159 | 158 160 160 Slowest Speed 160 | 160 160 160 Overloaded Moves . | . . . Propulsion Burnouts . | . . . Robots Hopped . | . . . Potential Cave-ins . | . . . Cave-ins Triggered . | . . . Exploration Rate (%) 57 | 5 89 77 Regions Visited 2 Branch Regions 1 Pre-discovered Areas 2 | . 1 1 Known Exits Taken . | . . . Unknown Exits Taken 2 | 1 1 . Scrap Searched 1 | . . 1 Spaces Dug 5 | . . 5 Terrain Destroyed 48 | . 29 19 Melee . | . . . Projectile . | . . . AOE 48 | . 29 19 Terrain Rammed . | . . . Walls Destroyed . | . . . Machines Disabled . | . . . Actions | -11 -10 -10 --------- Run | Yrd Mat Min Total 1128 | 86 630 412 Wait 87 | . 84 3 Move 939 | 72 474 393 Hop . | . . . Pick Up 7 | 1 6 . Fast Attach 9 | 6 3 . Attach 1 | . 1 . Detach . | . . . Swap 8 | 1 4 3 Drop . | . . . Fire 71 | 6 54 11 Melee . | . . . Ram . | . . . Kick . | . . . Crush 6 | . 4 2 Escape Stasis . | . . . Rewire . | . . . Trap . | . . . Miscellaneous . | . . . Route ------- -11/Scrapyard -10/Materials (discovered 6 exits: [*Mat x3] / [*Min x2] / *Sub) -10/Mines (discovered 3 exits: [*Mat x2] / Sub) History --------- Turn | Location | Event 5 | -11/Scrapyard | Discovered new exit (range 16) 145 | -11/Scrapyard | Entered Materials 271 | -10/Materials | Discovered new exit (range 15) 317 | -10/Materials | Build established: Mutant 408 | -10/Materials | Discovered new exit (range 15) 558 | -10/Materials | Core integrity fell below 50% 570 | -10/Materials | Discovered new exit (range 10) 615 | -10/Materials | Repaired Lgt. Treads 643 | -10/Materials | Repaired Lgt. Treads 671 | -10/Materials | Discovered new exit (range 8) 908 | -10/Materials | Discovered new exit (range 5) 1159 | -10/Materials | Discovered new exit (range 9) 1169 | -10/Materials | Entered Mines 1193 | -10/Mines | Discovered new exit (range 8) 1194 | -10/Mines | Learned location of Storage (-9) 1346 | -10/Mines | Core integrity fell below 20% 1436 | -10/Mines | Learned 4 Materials zone layouts 1691 | -10/Mines | Discovered new exit (range 6) 1793 | -10/Mines | Identified exit to Subcaves 1834 | -10/Mines | Destroyed by G-47 Trooper with Particle Gun Last Messages --------------- 01694_ S-10 Pest destroyed. 01697_ U-05 Engineer lays Concrete. 01698_ S-10 Pest destroyed. 01698_ U-05 Engineer lays Concrete. 01702_ Acquired 3 matter. 01703_ U-05 Engineer builds a Wall. 01707_ U-05 Engineer lays Concrete. 01708_ U-05 Engineer builds a Wall. 01714_ R-06 Scavenger collects Wheel. 01716_ U-05 Engineer lays Concrete. 01717_ R-06 Scavenger collects Welding Torch. 01732_ System corrupted: Component data lost. 01785_ Crushed K-01 Serf. 01785_ K-01 Serf destroyed. 01786_ Extracted 39 matter. 01790_ System corrupted: Heat flow error (+132). 01793_ Acquired derelict log, extracted data. Loading 1 Mines exit... 01831_ G-34 Mercenary destroyed. 01832_ Critical hit (Burn: +37). Map ----- +----------------------------------------------------+ | ?????????????????????# ###=#### ##???? | | ???????????????????### *=! #???? | | ????################ !% | """ #???? | | ????# ##### """ #???? | | ????# ############## #####???# """ #???? | | ##### #????????????## ##???????# #??? | | #?????????????## ##??####??# ### #??? | | #??????????????######## #### #??# ##??? | | #### #?????????????????## ## #???###???? | | ???# #????????????????## ##?????????? | | ???# #####????????????# ## #??????????? | | ?### ##???????????# ##### ##??????????? | | ## ##########??# #???####???????????? | | #??# #??????????????????? | | #??## #??????????????????? | | ## ####????# #???## #??????????????????? | | # ### #???????# #????# #??????????????????? | | ## ##?# #???????# ###### #??????????????????? | | ?# #### #???????# ! #??????????????????? | | ## ## #???????######### #??????????????????? | | # # #???????????????# #??????????????????? | | ##???????????????# #??????????????????? | | ## ##????????????????# #??????????????????? | | ##### #?????????????????# #??????????????????? | | ##???# #????????########## #??????????????????? | | #????# #????????# @%g#??????????????????? | | #????# #????????# ########=##?????????????????? | | ##????# #????????????????## ##????????????????? | | #?????# #????????????????# ##???????????????? | | ??????# #????????????????# #???????????????? | | ??????# #????????????????## #???????????????? | | #?????# #?????????????????# ##???????????????? | | #?????# #?????????????????# #????????????????? | | #?????# #?????????????????## ????????????????? | | #?????# #???????????????????# ???????????????? | | ??????# #???????????????????? ??????????????? | | ####### #???????????????????? ?????????????? | | #???????????????????? ##????????????? | | ###%#####???????????????????? ?????????????? | | ??# #???????????????????????? ????????????? | | ??# #????????????????????????? ????????????? | | ??# #????????????????????????? #???????????? | | ??# #?????????????????????????? ????????????? | | ??# #??????????????????????????#???????????????? | | ??# ####???????####????????????????????????????? | | ??# #?????### #????????????????????????????? | | ??#### ####### #????????????????????????????? | | ?????# #????????????????????????????? | | ?????######## #????????????????????????????? | | ????????????## #????????????????????????????? | +----------------------------------------------------+ Best States ------------- Heat Dissipation 35 Energy Generation 10 Energy Capacity 250 Matter Stores 300 Matter Capacity 300 Sight Range 16 Terrain Scan Density 10 Armor Coverage 150 Evasion (%) 40 Recoil Reduction 2 Item Schematics ----------------- Huge Storage Unit | -10/Materials | Hacked Hcp. Storage Unit | -10/Materials | Hacked Robot Schematics ------------------ None Fabricated ------------ Nothing Repaired ---------- Lgt. Treads | 45% | -10/Materials Lgt. Treads | 50% | -10/Materials Studied --------- None Alien Tech Used ----------------- None Achievements -------------- None Challenges ------------ None Game ------ Seed LinkedVoltaicProtomatter Manual? 0 Play Time 00:10:37 Cumulative 385.5 hours Start 2025.12.07 @ 17:28:32 End 2025.12.07 @ 17:36:52 Sessions 1 Manual Loads 0 Difficulty Rogue Special Mode None Game No. 396 Rogue 392 Adventurer 3 Explorer 1 Win Type - Total 5 Types 4/0/1/0/0/0/0/0/0/0 Lore% 85 Gallery% 80 Achievement% 68 Wizard Run 0 Options --------- Layout 0 ASCII 0 Keyboard 0 Movement Numpad Keybinds 0 Fullscreen 2 Font 18/SmallcapsGlow Map View 76x50 Zoom Use 0% Tactical HUD 1 Map Filters NONE Filters NONE Steam 1 RUN: 9a9a426a-6b0a-47db-addd-a4a5aea53e24